bitfinex/quotes_SOLUSD_20241020
["timestamp","ask_amount","ask_price","bid_price","bid_amount"]
[1729435149741,0.1,160.81,160.72,6.48139617]
[1729435149925,0.1,160.79,160.73,5.65]
[1729435150238,0.1,160.79,160.72,6.48139617]
[1729435150438,0.1,160.79,160.72,15.07454156]
[1729435151646,0.1,160.79,160.74,20.0]
[1729435151949,0.1,160.82,160.77,23.776884]
[1729435153060,4.75991395,160.84,160.77,23.776884]
[1729435153238,6.2177,160.83,160.72,13.33308808]
[1729435153425,6.2182,160.82,160.72,13.33308808]
[1729435153626,3.8272,160.84,160.73,17.30873898]
[1729435153826,6.2154,160.89,160.73,25.43429452]
[1729435154051,6.215,160.9,160.73,25.43429452]
[1729435154346,23.43703107,160.91,160.74,16.1101]
[1729435154554,6.215,160.9,160.75,47.96736489]
[1729435154852,6.216,160.88,160.79,23.776884]
[1729435155047,6.2159,160.88,160.78,20.0]
[1729435155250,6.2159,160.88,160.76,43.776884]
[1729435155446,17.22223107,160.91,160.77,8.59314539]
[1729435155645,6.2154,160.9,160.78,43.776884]
[1729435156042,6.2272,160.89,160.78,43.776884]
[1729435157072,6.2272,160.89,160.78,59.2517713]
[1729435160851,6.2272,160.89,160.78,59.2517713]
[1729435161652,6.2272,160.89,160.8,23.776884]
[1729435161950,6.2272,160.89,160.83,20.0]
[1729435162545,6.2272,160.89,160.81,23.776884]
[1729435162749,6.2272,160.89,160.82,20.0]
[1729435164740,6.2272,160.89,160.83,23.776884]
[1729435165157,0.6099336,160.93,160.86,20.0]
[1729435165333,0.6099336,160.93,160.88,20.0]
[1729435165538,0.6099336,160.93,160.81,14.96979359]
[1729435165539,0.6099336,160.93,160.81,6.2542]
[1729435165846,0.6099336,160.93,160.85,20.0]
[1729435166042,0.6099336,160.93,160.88,23.776884]
[1729435166241,0.6099336,160.93,160.89,20.0]
[1729435166861,0.6099336,160.93,160.9,23.776884]
[1729435167034,0.6099336,160.93,160.91,20.0]
[1729435167458,0.6099336,160.93,160.86,21.2424735]
[1729435167661,0.6099336,160.93,160.88,20.0]
[1729435169762,0.6099336,160.93,160.88,21.2425878]
[1729435170170,0.6099336,160.93,160.9,20.0]
[1729435170340,0.6099336,160.93,160.92,20.0]
[1729435170866,0.6099336,160.93,160.86,21.2424505]
[1729435171048,0.6099336,160.93,160.88,20.0]
[1729435171241,0.6099336,160.93,160.9,20.0]
[1729435171456,0.6099336,160.93,160.89,23.776884]
[1729435171766,0.6099336,160.93,160.9,20.0]
[1729435172265,0.6099336,160.93,160.89,23.776884]
[1729435172559,0.6099336,160.93,160.9,20.0]
[1729435172760,0.6099336,160.93,160.92,20.0]
[1729435172962,80.0,160.99,160.92,26.88154311]
[1729435173147,80.0,160.99,160.94,20.0]
[1729435173355,80.0,160.99,160.94,26.88154311]
[1729435173672,80.0,160.99,160.96,20.0]
[1729435173856,80.0,160.99,160.97,6.88154311]
[1729435174050,80.0,160.99,160.98,20.0]
[1729435174364,80.0,160.99,160.98,26.88154311]
[1729435174544,80.0,160.99,160.98,20.0]
[1729435175460,80.0,160.99,160.98,35.01624286]
[1729435176060,80.0,160.99,160.98,20.0]
[1729435177459,67.7,160.99,160.98,20.0]
[1729435177769,67.7,160.99,160.98,42.33170868]
[1729435177770,46.606,160.99,160.98,42.33170868]
[1729435177950,46.606,160.99,160.98,42.23170868]
[1729435178145,5.1664,160.99,160.98,60.96170868]
[1729435178343,19.90705503,161.0,160.99,62.24070868]
[1729435178554,0.6099336,161.09,161.0,38.83]
[1729435178845,0.6099336,161.09,161.02,20.0]
[1729435179173,0.6099336,161.09,161.04,20.0]
[1729435179466,0.6099336,161.09,161.04,28.71559359]
[1729435179846,0.6099336,161.09,161.06,20.0]
[1729435180570,0.6099336,161.09,161.03,20.0]
[1729435182766,0.6099336,161.09,161.02,5.78147525]
[1729435183963,0.6099336,161.09,161.03,20.0]
[1729435184165,0.6099336,161.09,160.99,1.079]
[1729435184567,0.6099336,161.09,160.97,12.03567525]
[1729435184872,6.209,161.06,160.97,5.78147525]
[1729435185167,6.6658,161.08,160.93,6.2169]
[1729435185168,16.6403,161.05,160.93,6.2169]
[1729435185367,22.8496,161.05,160.94,5.64]
[1729435185759,6.2097,161.04,160.93,11.99837525]
[1729435185944,16.6403,161.05,160.93,11.99837525]
[1729435186147,22.8495,161.05,160.93,11.99837525]
[1729435186374,6.2096,161.04,160.93,11.99837525]
[1729435186555,6.21,161.03,160.93,5.78147525]
[1729435186761,0.91631295,161.04,160.93,5.78147525]
[1729435186958,6.2112,161.0,160.89,11.99837525]
[1729435187149,0.91631295,161.04,160.89,11.99837525]
[1729435187347,6.2105,161.02,160.89,19.73301509]
[1729435187754,6.6658,161.01,160.89,13.51611509]
[1729435188168,12.8766,161.01,160.9,20.0]
[1729435188368,6.6658,161.01,160.9,20.0]
[1729435189382,12.8766,161.01,160.9,20.0]
[1729435191475,6.6658,161.01,160.9,20.0]
[1729435191677,12.8766,161.01,160.9,20.0]
[1729435192193,6.2111,161.0,160.9,20.0]
[1729435192997,16.6403,160.97,160.89,5.78147525]
[1729435193171,16.7403,160.97,160.84,5.78147525]
[1729435193373,16.7403,160.97,160.85,5.65]
[1729435193568,6.2134,160.95,160.85,5.65]
[1729435193999,6.2138,160.94,160.85,5.65]
[1729435194177,6.2138,160.94,160.84,5.78147525]
[1729435194375,6.2147,160.91,160.84,5.78147525]
[1729435194579,6.2146,160.92,160.8,7.73463984]
[1729435194992,6.6658,160.93,160.8,7.73463984]
[1729435195192,6.2154,160.89,160.8,7.73463984]
[1729435195400,6.215,160.9,160.79,5.78147525]
[1729435195696,0.1,160.91,160.79,5.78147525]
[1729435195697,6.2161,160.88,160.79,5.78147525]
[1729435195915,0.2,160.91,160.79,5.78147525]
[1729435196206,6.2162,160.87,160.79,5.78147525]
[1729435196400,6.2157,160.89,160.79,5.78147525]
[1729435196593,7.13211027,160.9,160.79,13.51611509]
[1729435196979,7.13211027,160.9,160.8,20.0]
[1729435197176,0.91711027,160.9,160.8,20.0]
[1729435197389,0.91711027,160.9,160.81,8.97785276]
[1729435197588,0.91711027,160.9,160.82,20.0]
[1729435199004,16.6403,160.92,160.82,20.0]
[1729435201080,16.6403,160.92,160.83,1.24289704]
[1729435201500,16.6403,160.92,160.84,27.73463984]
[1729435201699,16.6403,160.92,160.85,1.24268288]
[1729435201903,16.6403,160.92,160.84,20.0]
[1729435202400,6.2149,160.91,160.81,1.24273926]
[1729435204195,17.56096507,160.92,160.8,20.0]
[1729435204398,6.2146,160.91,160.8,20.0]
[1729435204607,17.56096507,160.92,160.8,20.0]
[1729435204813,6.2156,160.89,160.8,20.0]
[1729435205001,6.2179,160.91,160.79,5.78147525]
[1729435205310,6.2164,160.87,160.75,7.73463984]
[1729435205503,6.2164,160.87,160.76,0.31]
[1729435205719,0.1,160.9,160.75,7.73463984]
[1729435205884,6.2167,160.86,160.75,7.73463984]
[1729435206207,6.2167,160.86,160.76,20.0]
[1729435206499,6.2167,160.86,160.76,7.73463984]
[1729435206698,6.2151,160.9,160.77,20.0]
[1729435206891,6.2151,160.9,160.78,1.2430924]
[1729435207991,6.0179,160.91,160.78,8.97773224]
[1729435208193,6.0179,160.91,160.79,25.78147525]
[1729435208391,17.56096507,160.92,160.81,6.3167]
[1729435208598,15.6547,160.97,160.82,53.48879823]
[1729435208806,15.6547,160.97,160.82,61.43772516]
[1729435209797,15.6547,160.97,160.82,42.60772516]
[1729435211506,21.8672,160.97,160.82,42.60772516]
[1729435212407,15.6547,160.97,160.82,61.43772516]
[1729435213312,15.6547,160.97,160.82,61.53772516]
[1729435213994,15.6547,160.97,160.82,61.43772516]
[1729435214495,15.6547,160.97,160.83,0.1]
[1729435214795,15.6547,160.97,160.85,20.0]
[1729435214995,15.6547,160.97,160.87,20.0]
[1729435215309,15.6547,160.97,160.88,1.24242003]
[1729435216313,15.6547,160.97,160.89,20.0]
[1729435216604,15.6547,160.97,160.9,1.24228887]
[1729435217589,15.6547,160.97,160.89,20.0]
[1729435217590,16.5750737,160.97,160.89,20.0]
[1729435217911,15.6547,160.97,160.89,21.24242439]
[1729435218412,15.6547,160.97,160.89,28.97706423]
[1729435218808,15.6547,160.97,160.89,34.75853948]
[1729435219007,15.6547,160.97,160.9,7.73463984]
[1729435219214,15.6547,160.97,160.91,21.24228061]
[1729435220209,15.8038,161.01,160.92,20.0]
[1729435220517,15.8038,161.01,160.93,1.24206879]
[1729435220706,15.8038,161.01,160.94,20.0]
[1729435220903,0.92008401,161.04,160.95,1.24186385]
[1729435221593,0.92008401,161.04,160.96,20.0]
[1729435222106,15.8038,161.05,160.97,1.241766]
[1729435222500,15.8038,161.05,160.97,21.241766]
[1729435224319,15.8038,161.05,160.97,20.0]
[1729435225099,15.8038,161.05,160.97,7.73463984]
[1729435225306,15.8038,161.05,160.98,20.0]
[1729435225613,15.8038,161.05,160.99,1.24176894]
[1729435226110,0.9197577,161.08,160.99,1.24176894]
[1729435227919,16.4137336,161.09,161.0,20.0]
[1729435230113,16.4137336,161.09,161.0,27.73463984]
[1729435230820,16.4137336,161.09,161.01,1.24135028]
[1729435231125,0.6099336,161.09,161.01,1.24135028]
[1729435231323,0.6099336,161.09,161.03,20.0]
[1729435231503,0.6099336,161.09,161.03,27.73463984]
[1729435231899,0.6099336,161.09,161.04,7.73463984]
[1729435232209,0.6099336,161.09,161.05,20.0]
[1729435232412,0.6099336,161.09,161.05,27.73463984]
[1729435232616,34.1151,161.22,161.09,0.1]
[1729435232617,3.0,161.22,161.09,0.1]
[1729435232807,3.0,161.22,161.11,20.0]
[1729435233116,3.0,161.22,161.1,33.26983731]
[1729435233117,3.0,161.22,161.13,20.0]
[1729435233416,3.0,161.22,161.17,20.0]
[1729435233599,3.0,161.22,161.18,6.20519747]
[1729435233805,3.0,161.22,161.19,20.0]
[1729435234413,3.0,161.22,161.19,26.66908636]
[1729435234707,3.0,161.22,161.21,20.0]
[1729435234897,3.0,161.22,161.21,25.63]
[1729435236002,3.0,161.22,161.21,20.0]
[1729435238126,3.0,161.22,161.21,26.66908636]
[1729435238426,1.92240258,161.22,161.21,60.98265313]
[1729435239426,1.92240258,161.22,161.21,42.25265313]
[1729435239595,1.92240258,161.22,161.21,26.66908636]
[1729435240212,1.92240258,161.22,161.21,6.66908636]
[1729435240412,1.92240258,161.22,161.11,6.5811]
[1729435240627,1.92240258,161.22,161.14,6.66908636]
[1729435241523,1.92240258,161.22,161.14,14.4037262]
[1729435241902,1.92240258,161.22,161.14,6.66908636]
[1729435242101,1.92240258,161.22,161.11,14.31573984]
[1729435242301,1.92240258,161.22,161.12,15.58356677]
[1729435243433,1.92240258,161.22,161.14,20.0]
[1729435243612,1.92240258,161.22,161.14,26.66908636]
[1729435246904,1.92240258,161.22,161.09,20.0]
[1729435247104,1.92240258,161.22,161.09,26.66908636]
[1729435247304,8.12510258,161.22,161.09,6.66908636]
[1729435247602,0.1,161.2,161.09,6.66908636]
[1729435247929,12.3629,161.15,161.03,6.66908636]
[1729435248109,12.3629,161.15,161.03,14.4037262]
[1729435248110,6.1575,161.15,161.03,14.4037262]
[1729435248513,6.1575,161.15,161.04,8.97599233]
[1729435248826,15.6015,161.16,161.05,6.66908636]
[1729435249132,15.6015,161.16,161.06,8.97550844]
[1729435249509,15.6015,161.16,161.06,7.73463984]
[1729435249906,15.6015,161.16,161.06,8.97583981]
[1729435250337,15.6015,161.16,161.06,15.64492617]
[1729435251036,15.6015,161.16,161.07,26.66908636]
[1729435251536,15.6015,161.16,161.09,20.0]
[1729435251831,15.6015,161.16,161.1,1.24095059]
[1729435252422,6.1575,161.2,161.1,1.24095059]
[1729435252626,6.1575,161.2,161.11,20.0]
[1729435256040,16.51018918,161.21,161.11,20.0]
[1729435256345,16.51018918,161.21,161.13,20.0]
[1729435256346,15.6015,161.21,161.13,20.0]
[1729435256545,1.92240258,161.22,161.14,14.4037262]
[1729435256714,1.92240258,161.22,161.15,20.0]
[1729435256920,1.92240258,161.22,161.15,34.4037262]
[1729435257120,1.92240258,161.22,161.17,20.0]
[1729435257831,1.92240258,161.22,161.18,8.97500382]
[1729435258052,1.92240258,161.22,161.19,20.0]
[1729435258524,1.92240258,161.22,161.2,1.24008548]
[1729435258721,1.92240258,161.22,161.21,20.0]
[1729435258945,1.92240258,161.22,161.21,34.4037262]
[1729435259647,1.92240258,161.22,161.21,67.40359376]
[1729435260021,0.3,161.24,161.22,0.1]
[1729435260218,0.3,161.24,161.23,46.46463984]
[1729435260435,0.3,161.24,161.23,53.1337262]
[1729435260862,0.3,161.24,161.23,61.18259376]
[1729435261022,0.3,161.24,161.23,61.08259376]
[1729435261228,0.3,161.24,161.23,61.18259376]
[1729435261441,0.3,161.24,161.23,61.08259376]
[1729435261630,0.6099336,161.41,161.26,0.2]
[1729435261836,0.6099336,161.41,161.29,0.1]
[1729435262143,0.6099336,161.41,161.31,20.0]
[1729435263425,0.6099336,161.41,161.33,20.0]
[1729435263623,0.6099336,161.41,161.31,20.0]
[1729435264340,0.6099336,161.41,161.33,20.0]
[1729435264519,0.6099336,161.41,161.35,20.0]
[1729435264723,0.6099336,161.41,161.35,27.73463984]
[1729435265049,0.6099336,161.41,161.37,20.0]
[1729435265426,0.6099336,161.41,161.32,14.4037262]
[1729435266149,0.6099336,161.41,161.33,26.67886756]
[1729435266336,0.6099336,161.41,161.33,14.51795392]
[1729435266529,0.6099336,161.41,161.34,20.0]
[1729435269354,0.6099336,161.41,161.35,0.1]
[1729435269533,0.6099336,161.41,161.34,45.39908636]
[1729435270452,0.6099336,161.41,161.34,45.49908636]
[1729435270633,0.6099336,161.41,161.36,20.0]
[1729435271439,0.6099336,161.41,161.35,6.66908636]
[1729435272843,0.6099336,161.41,161.36,20.0]
[1729435275055,16.5277,161.4,161.22,44.42491058]
[1729435275357,16.5277,161.4,161.26,14.4037262]
[1729435275935,6.6326,161.39,161.26,14.4037262]
[1729435276154,6.1965,161.38,161.26,14.4037262]
[1729435276457,12.9288,161.39,161.26,14.4037262]
[1729435277140,6.6326,161.39,161.26,14.4037262]
[1729435277661,6.6326,161.39,161.27,47.81803238]
[1729435277963,6.6326,161.39,161.29,20.0]
[1729435278139,16.5277,161.4,161.29,46.6380735]
[1729435278341,16.5277,161.4,161.31,20.0]
[1729435278537,16.5277,161.4,161.31,21.23888754]
[1729435279442,16.5277,161.4,161.31,27.9079739]
[1729435280340,16.5277,161.4,161.31,6.66908636]
[1729435281271,16.5277,161.4,161.25,15.5835074]
[1729435281451,6.1968,161.38,161.25,14.4037262]
[1729435282260,6.1971,161.37,161.25,14.4037262]
[1729435282558,6.1975,161.36,161.25,14.4037262]
[1729435282867,6.198,161.34,161.2,6.0284]
[1729435283041,22.6304,161.35,161.19,6.66908636]
[1729435283240,22.6304,161.35,161.21,15.5835074]
[1729435283241,22.5304,161.35,161.21,15.5835074]
[1729435283461,22.5304,161.35,161.22,25.39908636]
[1729435283660,16.5127,161.35,161.24,18.73]
[1729435283840,16.5127,161.35,161.23,16.92275814]
[1729435283841,16.5127,161.35,161.25,15.64299395]
[1729435284439,16.5127,161.35,161.25,6.66908636]
[1729435284863,16.5127,161.35,161.22,14.4037262]
[1729435285050,16.6127,161.35,161.22,14.4037262]
[1729435285361,16.5127,161.35,161.22,14.4037262]
[1729435285741,16.6127,161.35,161.22,14.4037262]
[1729435285940,22.8104,161.35,161.22,14.4037262]
[1729435286150,16.5127,161.35,161.24,0.1]
[1729435286360,16.5127,161.35,161.26,18.73]
[1729435286566,16.5127,161.35,161.27,27.73463984]
[1729435286768,16.5127,161.35,161.28,1.23918467]
[1729435286971,16.5127,161.35,161.29,7.73463984]
[1729435287340,16.5127,161.35,161.3,20.0]
[1729435287748,6.0177,161.39,161.3,20.0]
[1729435288457,6.0177,161.39,161.28,20.0]
[1729435289548,6.2968,161.38,161.28,20.0]
[1729435289747,0.1,161.38,161.28,20.0]
[1729435289958,0.1,161.38,161.27,6.66908636]
[1729435290171,6.1966,161.38,161.27,6.66908636]
[1729435290485,16.5127,161.34,161.21,7.73463984]
[1729435290656,16.5127,161.34,161.22,1.23962664]
[1729435290857,16.5127,161.34,161.23,26.46463984]
[1729435291262,16.5127,161.34,161.24,1.23941198]
[1729435291478,16.5127,161.34,161.25,7.73463984]
[1729435291672,16.5127,161.34,161.26,20.0]
[1729435291847,16.5127,161.34,161.26,27.73463984]
[1729435293282,16.5127,161.34,161.23,15.75737093]
[1729435293283,16.5127,161.34,161.24,20.0]
[1729435294051,17.41978748,161.34,161.24,20.0]
[1729435294877,16.5127,161.34,161.24,20.0]
[1729435295858,16.5127,161.34,161.24,38.73]
[1729435296072,16.5127,161.34,161.24,20.0]
[1729435296286,6.1988,161.33,161.23,6.66908636]
[1729435296559,16.5127,161.34,161.23,6.66908636]
[1729435296760,22.7108,161.34,161.23,6.66908636]
[1729435296972,16.5127,161.34,161.24,15.5835074]
[1729435297177,16.5127,161.34,161.25,6.66908636]
[1729435297663,16.5127,161.34,161.26,20.0]
[1729435299062,16.5127,161.34,161.26,34.4037262]
[1729435299457,16.5127,161.34,161.24,1.23944222]
[1729435299661,16.5127,161.34,161.24,21.23944222]
[1729435299883,22.7108,161.34,161.24,20.0]
[1729435300095,6.1996,161.3,161.18,5.95257551]
[1729435300390,6.1999,161.3,161.18,5.95257551]
[1729435300588,6.1202,161.29,161.18,5.95257551]
[1729435300881,6.1202,161.29,161.17,7.3092501]
[1729435301294,12.3203,161.29,161.17,7.3092501]
[1729435301477,6.2006,161.28,161.17,7.3092501]
[1729435301685,15.0457,161.27,161.17,7.3092501]
[1729435303408,15.0457,161.27,161.17,20.0]
[1729435308818,15.0457,161.27,161.15,1.07730182]
[1729435309006,21.2466,161.27,161.15,1.07730182]
[1729435309320,21.2464,161.27,161.15,1.07730182]
[1729435309498,15.0457,161.27,161.16,20.0]
[1729435309806,21.1659,161.34,161.18,0.1]
[1729435310008,21.1659,161.34,161.19,39.96966275]
[1729435310198,21.1659,161.34,161.19,53.23148836]
[1729435310377,21.1659,161.34,161.19,34.50148836]
[1729435310581,6.1987,161.33,161.19,33.26182561]
[1729435314399,8.1987,161.33,161.19,33.26182561]
[1729435314603,6.1988,161.32,161.19,33.26182561]
[1729435314989,0.1,161.31,161.19,5.95257551]
[1729435315199,6.1997,161.3,161.15,1.07730182]
[1729435315513,6.1997,161.3,161.17,0.19]
[1729435316085,0.1,161.32,161.17,7.3092501]
[1729435316307,6.1989,161.32,161.18,7.3092501]
[1729435316502,6.2989,161.32,161.19,20.0]
[1729435316810,6.1989,161.32,161.19,27.3092501]
[1729435317009,6.2989,161.32,161.19,27.3092501]
[1729435317213,6.2993,161.31,161.19,27.3092501]
[1729435317413,7.19537589,161.31,161.19,27.3092501]
[1729435317587,6.2993,161.31,161.19,27.3092501]
[1729435317998,6.1999,161.3,161.18,20.0]
[1729435318505,6.2,161.29,161.18,20.0]
[1729435318708,0.89607251,161.3,161.18,20.0]
[1729435318909,7.09597251,161.3,161.18,20.0]
[1729435319211,28.182,161.26,161.15,1.07730182]
[1729435319510,28.182,161.26,161.13,6.3257]
[1729435320013,28.182,161.26,161.15,1.07805938]
[1729435320909,6.2019,161.25,161.15,1.07805938]
[1729435321087,6.2051,161.16,161.09,6.3257]
[1729435321288,6.205,161.16,161.09,6.3257]
[1729435321493,6.2456,161.14,161.03,1.07859256]
[1729435322125,12.4515,161.14,161.03,1.07859256]
[1729435322500,6.2061,161.13,161.0,7.3092501]
[1729435322809,6.2456,161.14,161.0,8.38817445]
[1729435322995,6.2456,161.14,161.0,27.11817445]
[1729435323185,15.7351,161.17,161.03,0.1]
[1729435323519,15.7351,161.17,161.04,7.3092501]
[1729435324022,15.7351,161.17,161.02,3.96]
[1729435324309,21.9807,161.12,161.0,1.07892435]
[1729435324513,6.3076,161.1,160.94,7.3092501]
[1729435324889,6.3076,161.1,160.98,1.019208]
[1729435325086,6.3076,161.1,160.95,6.46917224]
[1729435325301,21.9807,161.12,160.98,27.11833764]
[1729435325499,21.9807,161.12,160.99,7.3092501]
[1729435325701,21.9807,161.12,161.0,20.0]
[1729435325909,21.9807,161.12,161.02,20.0]
[1729435326114,21.9807,161.12,161.02,27.3092501]
[1729435326319,21.9807,161.12,161.02,20.0]
[1729435326614,29.20587522,161.12,160.98,1.07880979]
[1729435326915,6.2069,161.11,160.98,1.07880979]
[1729435327087,0.1,161.11,160.98,1.07880979]
[1729435327293,6.2073,161.1,160.98,1.07880979]
[1729435327703,22.99937522,161.12,160.98,1.07880979]
[1729435327704,6.3092,161.05,160.98,1.07880979]
[1729435327905,6.2456,161.04,160.95,6.46917224]
[1729435328110,6.2456,161.08,160.95,6.46917224]
[1729435328309,6.2456,161.08,160.96,7.3092501]
[1729435328712,6.2456,161.08,160.95,13.08663673]
[1729435329011,6.2456,161.08,160.95,6.46917224]
[1729435329306,15.7351,161.09,160.98,18.73]
[1729435329514,15.7351,161.09,160.98,25.139]
[1729435330104,15.7351,161.09,160.99,20.0]
[1729435330919,21.9428,161.09,160.95,6.46917224]
[1729435331215,6.2088,161.07,160.95,6.46917224]
[1729435331715,15.7351,161.09,160.95,6.46917224]
[1729435332218,6.3082,161.08,160.95,6.46917224]
[1729435332396,6.2089,161.06,160.95,6.46917224]
[1729435332593,6.2456,161.04,160.95,6.46917224]
[1729435333116,6.2456,161.04,160.88,6.409]
[1729435333117,12.4552,161.04,160.88,6.409]
[1729435333322,6.2456,161.04,160.93,6.46522728]
[1729435333614,6.2456,161.04,160.88,25.139]
[1729435333833,6.2456,161.04,160.93,6.46559121]
[1729435334112,6.2456,161.04,160.88,4.909]
[1729435334414,6.2456,161.04,160.93,6.465548]
[1729435334616,6.2456,161.04,160.88,4.909]
[1729435334792,6.2456,161.04,160.93,6.46569064]
[1729435335214,6.2456,161.04,160.89,1.07958167]
[1729435335408,6.2456,161.04,160.93,6.46334513]
[1729435335604,6.2456,161.04,160.91,1.24196317]
[1729435335792,6.2456,161.08,160.93,6.46252937]
[1729435335993,0.1,161.17,160.97,20.2]
[1729435336298,0.1,161.17,160.96,18.73]
[1729435336299,0.1,161.17,161.01,20.0]
[1729435336496,0.1,161.16,161.01,20.0]
[1729435336822,0.1,161.16,160.99,20.0]
[1729435336990,0.1,161.16,160.99,21.24134918]
[1729435337513,0.1,161.17,160.99,21.24134918]
[1729435337710,6.4058,161.14,160.97,20.0]
[1729435338092,6.4058,161.14,160.97,28.52893899]
[1729435338292,0.1,161.14,160.97,28.52893899]
[1729435338495,0.1,161.14,160.99,38.73]
[1729435338717,0.1,161.15,160.99,47.25893899]
[1729435338895,0.1,161.15,160.99,28.52893899]
[1729435339216,0.1,161.15,161.01,20.0]
[1729435340204,6.3055,161.15,161.01,20.0]
[1729435340402,0.2,161.15,161.0,8.52893899]
[1729435340609,15.7106,161.11,160.96,6.409]
[1729435340804,6.02,161.1,160.93,14.99146836]
[1729435341002,6.02,161.1,160.94,14.16893899]
[1729435341604,6.02,161.1,160.94,8.52893899]
[1729435341814,6.02,161.1,160.97,20.0]
[1729435342123,6.02,161.1,160.98,23.776884]
[1729435342309,6.02,161.1,161.01,20.0]
[1729435342627,6.02,161.1,161.02,23.776884]
[1729435344732,6.02,161.1,160.94,18.73]
[1729435344932,6.02,161.1,160.94,27.25893899]
[1729435345231,6.02,161.1,160.95,8.52893899]
[1729435345733,6.02,161.1,160.96,20.0]
[1729435345914,6.02,161.1,160.97,23.776884]
[1729435346113,6.02,161.1,160.99,23.776884]
[1729435346317,6.02,161.1,161.01,23.776884]
[1729435347630,6.12,161.1,161.01,23.776884]
[1729435347837,0.1,161.08,161.01,23.776884]
[1729435348045,0.1,161.09,160.94,6.46133442]
[1729435348222,6.12,161.1,160.94,6.46133442]
[1729435348223,0.1,161.08,160.94,6.46133442]
[1729435349314,6.2084,161.07,160.97,20.0]
[1729435349518,6.2084,161.07,160.98,23.776884]
[1729435349914,6.2092,161.05,160.95,20.0]
[1729435350125,0.1,161.06,160.95,20.0]
[1729435350330,6.2095,161.05,160.95,20.0]
[1729435350715,15.7106,161.03,160.94,6.46133442]
[1729435350922,12.2304,161.02,160.94,6.46133442]
[1729435351739,6.02,161.02,160.93,6.46166137]
[1729435351936,15.7106,161.09,160.94,28.50118928]
[1729435352137,15.7106,161.09,160.96,18.73]
[1729435352340,15.7106,161.09,160.99,23.776884]
[1729435352544,15.7106,161.09,161.0,20.0]
[1729435352842,15.7106,161.09,161.01,23.776884]
[1729435356045,0.1,161.06,160.93,7.54084987]
[1729435356354,6.3089,161.06,160.93,7.54084987]
[1729435356647,7.24035055,161.06,160.93,7.54084987]
[1729435356939,6.21,161.03,160.93,7.54084987]
[1729435357242,6.2095,161.05,160.94,20.0]
[1729435357431,6.2095,161.05,160.93,7.54084987]
[1729435357626,6.3095,161.05,160.93,7.54084987]
[1729435358041,15.0148,161.03,160.93,7.54084987]
[1729435358344,6.1728,161.02,160.93,7.54084987]
[1729435358743,6.1728,161.02,160.94,23.776884]
[1729435359148,6.2728,161.02,160.87,6.5715]
[1729435359439,6.2107,161.01,160.88,7.53826768]
[1729435359646,6.3107,161.01,160.88,7.53826768]
[1729435360045,6.3115,161.0,160.88,7.53826768]
[1729435360244,0.1,160.98,160.88,7.53826768]
[1729435360542,6.3131,160.95,160.88,6.45838579]
[1729435360743,6.3139,160.93,160.85,1.6900148]
[1729435361042,6.1728,160.94,160.85,0.6099336]
[1729435361427,7.10510908,160.94,160.85,0.6099336]
[1729435362346,7.10510908,160.94,160.85,20.6099336]
[1729435362963,6.1728,160.94,160.85,20.6099336]
[1729435363865,6.2139,160.93,160.85,0.6099336]
[1729435364545,6.2138,160.93,160.85,0.6099336]
[1729435364743,6.2146,160.92,160.85,0.6099336]
[1729435365357,0.1,160.91,160.85,0.6099336]
[1729435365541,15.0148,160.89,160.85,0.6099336]
[1729435366555,22.1626545,160.89,160.85,0.6099336]
[1729435367557,6.3163,160.87,160.85,0.6099336]
[1729435367750,6.3158,160.88,160.85,0.6099336]
[1729435367954,15.9471545,160.89,160.85,0.6099336]
[1729435368543,0.9323545,160.89,160.85,0.6099336]
[1729435369671,21.1876,160.94,160.85,0.6099336]
[1729435373338,6.2138,160.93,160.85,0.6099336]